Workbook

Sheet SUMMARY
B1: NELSON MANDELA PRISON HOUSE
I6: REVISION 1
I7: 2026.07.14
H8: TEL: | I8: +27(0) 12 667 2780
H9: E MAIL: | I9: theo@insitegroup.co.za
I10: nolwazi@insitegroup.co.za
H11: CONTACT PERSON: | I11: Theo & Nolwazi
B13: =B1 -> NELSON MANDELA PRISON HOUSE
B15: BILL OF QUANTITIES - SOFT- AND HARD LANDSCAPING (Part 1 & Part 2)
B19: CONTRACTORS COMPANY NAME | G19: SIGNATURE
B20: Contact person
B24: CONTRACT VALUE EXCLUDING VAT (NUMBERS) | G24: SIGNATURE
B28: CONTRACT VALUE EXCLUDING VAT (IN WORDS) | G28: SIGNATURE
B30: NOTES TO THE TENDERER
B32: A BRIEFING SESSION FOR THIS TENDER ON 21 JULY 2026, THIS IS NOT COMPULSORY BUT IS HIGHLY ADVISABLE.
B34: THE NELSON MANDELA PRISON HOUSE IS PART OF THE IZIKO MUSEUMS OF SOUTH AFRCA COMPLEX. THE SITE IS A GRADE I NATIONAL HERITAGE SITE. ALL WORK MUST BE UNDERTAKEN WITH THE APPROPRIATE DUTY OF CARE AS PRESCRIBED BY THE NATIONAL HERITAGE RESOURCES ACT NO. 25 OF 1999, THIS SCOPE REQUIRES A SAHRA PERMIT, WHICH HAS BEEN OBTAINED. ALL ACTIVITIES MUST THEREFORE BE CONDUCTED WITH HEIGHTENED CAUTION, SENSITIVITY, RESPECT FOR THE SURROUNDING HERITAGE ENVIRONMENT, AND IN LINE WITH THE PERMIT INSTRUCTIONS.
B36: IT IS THE CONTRACTOR'S RESPONSIBILITY TO FAMILIARISE HIM/HERSELF WITH THE ALIGNMENT OF THE UNDERGROUND SERVICES AND TO TAKE THE NECESSARY PRECAUTIONS NOT TO DAMAGE ANY OF THE UNDERGROUND SERVICES.
B38: TENDER RATES MUST BE COMPLETED TO ALLOW FOR ANY PART OR QUANTITIES TO BE REMOVED OR SIGNIFICANTLY REDUCED.
B40: This Schedule of Quantities should be read in conjunction with the following drawings and documents:
C41: DRAWING NUMBER | D41: DRAWING NAME
C42: PART 1: INTERNAL HOUSE GARDEN - SOFT AND HARD LANDSCAPING
B43: * | C43: IS-3758-601 | D43: PART 1: INTERNAL HOUSE GARDEN LANDSCAPE SKETCHPLAN
B44: * | C44: IS-3758-605 | D44: PART 1: INTERNAL HOUSE GARDEN RAMP 1 DETAIL
B45: * | C45: IS-3758-606 | D45: PART 1: INTERNAL HOUSE GARDEN RAMP 2 DETAIL
B46: * | C46: IS-3758-607 | D46: PART 1: INTERNAL HOUSE GARDEN RAMP 3 DETAIL
C47: PART 2: GROUNDS UPGRADE - CIVIL AND EXTERNAL WORKS
B48: * | C48: IS-3758-602 | D48: PART 2: EXTERNAL GROUND UPGRADE HARD LANDSCAPE SKETCHPLAN
B49: * | C49: IS-3758-603 | D49: PART 2: EXTERNAL GROUND UPGRADE DRINKING FOUNTAIN DETAIL
B50: * | C50: IS-3758-604 | D50: PART 2: EXTERNAL GROUND UPGRADE SOFT LANDSCAPE SKETCHPLAN
C52: DOCUMENT NAME
B53: * | C53: Drawing Register
B54: * | C54: Provisional Bill of Quantities
B55: * | C55: Site Pin
B56: * | C56: General Landscape Specifications
B57: * | C57: General Specification for Exposed Aggregate Concrete Paving
B58: * | C58: Artevia Exposed Data Sheet
B59: * | C59: Chryso Devo Lav P Data Sheet
B60: * | C60: SABS 1200 MJ - 1984
B61: * | C61: SANS 10400-S:2025 Edition 4 (Refer to page 30: 7 Vertical travel)
B62: * | C62: Step-By-Step Guide to Perfect Paving
C64: IMPORTANT NOTES:
C65: The lowest tender will not necessary be accepted. Tender rates must be completed to allow for any part or quantities to be removed or significantly reduced, where so required.
C67: A BRIEFING SESSION FOR THIS TENDER ON (insert date), THIS IS NOT COMPULSORY BUT IS HIGHLY ADVISABLE. Questions or Clarifications can be sent to: ndonson@iziko.org.za; smadlavu@iziko.org.za & aarendse@iziko.org.za
C69: TENDER CLOSE:
C70: Date: (insert date)
C72: Site Address:
C73: See Site Pin under Documents (Paarl Region) - Drakenstein Prison, R 301, Paarl Western Cape
C75: Commencement of Landscape construction: (To be confirmed with Main contractor based on programme)
C76: Completion date: TBC
B78: SUMMARY PAGE
B79: NOTE: Contractor to forward all Total amounts into the Summary below.
B84: CONTRACTORS COMPANY NAME | G84: SIGNATURE
B85: Contact person
B89: CONTRACT VALUE EXCLUDING VAT (NUMBERS) | G89: SIGNATURE
B93: CONTRACT VALUE EXCLUDING VAT (IN WORDS) | G93: SIGNATURE
B95: NOTES TO THE TENDERER
B97: SITE VISIT TO BE DONE BY CONTRACTOR BEFORE HANDING IN THIS DOCUMENT.
B99: IT IS THE CONTRACTOR'S RESPONSIBILITY TO FAMILIARISE HIM/HERSELF WITH THE ALIGNMENT OF THE UNDERGROUND SERVICES AND TO TAKE THE NECESSARY PRECAUTIONS NOT TO DAMAGE ANY OF THE UNDERGROUND SERVICES.
B101: TENDER RATES MUST BE COMPLETED TO ALLOW FOR ANY PART OR QUANTITIES TO BE REMOVED OR SIGNIFICANTLY REDUCED.
B104: This Schedule of Quantities should be read in conjunction with the following drawings and documents:
C105: DRAWING NUMBER | D105: DRAWING NAME
C106: SKETCHPLANS:
B107: * | C107: IS-3674-000 | D107: LANDSCAPE CONCEPT PLAN
C109: DOCUMENT NAME
B110: * | C110: Provisional Bill of Quantities
B111: * | C111: General Landscape Specifications
B112: * | C112: Paving: SANS 1200 MJ
C114: IMPORTANT NOTES:
C115: The lowest tender will not necessary be accepted. Tender rates must be completed to allow for any part or quantities to be removed or significantly reduced, where so required.
C117: COMPULSORY TENDER BRIEFING MEETING ON SITE:
C118: Date: TBC
C120: TENDER CLOSE:
C121: Date: TBC
C123: Address:
C124: 3 Alice Lane, Sandown, Sandton
C126: Works completion date:
C127: Commencement of Landscape construction: To be confirmed with Main contractor.
B130: PART 1: | C130: INTERNAL HOUSE GARDEN - SOFT AND HARD LANDSCAPING
B131: PART 2: | C131: GROUNDS UPGRADE - CIVIL AND EXTERNAL WORKS
C134: PRELIMINARIES AND GENERAL (Contractor's own %)
C136: CONTINGENCIES (0%) | I136: 0.0%
C138: SUB TOTAL FOR ALL AREAS (excl VAT, excl FEES)
C142: EXCLUDED ITEMS:
C143: * Water points
C144: * Sleeves by Civil works | D144: `
C145: * All hard landscaping items, i.e. road surfaces, kerds, paving & sidewalks etc.
C146: *All furniture, i.e. bollards, bins etc.
C147: *Layer works
C148: *Stormwater
C149: *Landscape Lighting
C150: *Removal of Trees

Sheet PART 1
B1: NELSON MANDELA PRISON HOUSE
B3: BILL OF QUANTITIES
B4: PART 1: | C4: INTERNAL HOUSE GARDEN- SOFT AND HARD LANDSCAPING
C5: SUMMARY
B7: 1. | C7: =C30 -> MISCELLANEOUS - PART 1
B9: 2. | C9: =C47 -> EARTHWORKS AND SOIL IMPROVEMENTS - PART 1
B11: 3. | C11: =C133 -> PLANTING - PART 1
B13: 4. | C13: =C179 -> HARD LANDSCAPING - PART 1
B15: 5. | C15: =C245 -> HAND-WATERING & EQUIPMENT - PART 1
B17: 6. | C17: =C263 -> MAINTENANCE - PART 1
C19: SUB-TOTAL FOR PART 1
J20: Excl. VAT
C23: SUMMARY
C24: Total soft landscaping | G24: m² | H24: =SUM(H155+H163) -> 649
C25: Total hard landscaping | G25: m² | H25: =SUM(D205+E239) -> 83
C26: Total Area | G26: m² | H26: =SUM(H24:H25) -> 732
B28: ITEM | C28: DESCRIPTION OF WORK | G28: UNIT | H28: QTY | I28: RATE | J28: TOTAL
B30: 1. | C30: MISCELLANEOUS - PART 1
B32: 1.1 | C32: SITE CLEARANCE
B33: a. | C33: Loading and removal to an approved dumping site off site, all unusable material, debris and stone, unused plant materials, placed in measurable storage heaps, resulting from the initial soil preparation to the final finishing process (other than specified).
B34: b. | C34: Collect unwanted materials and place in measurable heaps, and certified by Landscape Architect on site prior to removal.
B35: c. | C35: The contractor should at all times ensure to keep the site in a neat and tidy condition.
B36: d. | C36: Provision for removal of unwanted material or material not suitable for fill - to spoil material off site (15mm layer over area for manicured planting areas) | D36: =SUM(H26) -> 732 | E36: m² | G36: m³ | H36: =ROUND((D36*0.015),0) -> 11
B37: ei. | C37: Provision for hard rock excavation and subsoil conditions. | G37: PC SUM | H37: 1 | I37: 50,000.00 | J37: =H37*I37 -> 50,000.00
B38: eii. | C38: Contractor to specify own % mark-up
B40: 1.2 | C40: TREE FELLING - Allowance by Specialist
B41: a. | C41: Provision for tree felling for 2 x existing trees (including: tree removal, stem removal, clearing of site & cut back of roots) | G41: PC SUM | H41: 1 | I41: 10,500.00 | J41: BY OTHERS
B42: b. | C42: Contractor to specify own % mark-up | J42: BY OTHERS
C44: TOTAL FOR MISCELLANEOUS:
B47: 2. | C47: EARTHWORKS AND SOIL IMPROVEMENTS - PART 1
B49: 2.1 | C49: TOPSOIL
B50: 2.1.1 | C50: Topsoil (import and spread)
B51: a. | C51: The contractor to provide all necessary equipment, labour and machinery for the import and spread of topsoil.
B52: b. | C52: Provide a sample of topsoil for approval by the Client or Client Representative/Landscape Architects.
B53: c. | C53: The topsoil to be free of any building rubble, rocks or plant materials.
B54: d. | C54: Spread topsoil for groundcovers to a minimum thickness of 75mm average over de-compacted areas and 100mm over planting areas
B55: e. | C55: Spread topsoil for tree holes where required to a minimum of 0.34m³ per tree hole
B56: f. | C56: Rate is to be inclusive of all intensive hand labour, where required.
B57: g. | C57: Compact soils where required and specified and prevent soil erosion at all times.
B58: h. | C58: IMPORTANT NOTE FOR IMPORT OF TOPSOIL: PAYMENT FOR TOPSOIL WILL ONLY TAKE PLACE ON RECEIPT OF SIGNED DELIVERY NOTES. RECIEPTS ARE TO BE APPROVED BY THE LANDSCAPE ARCHITECT PRIOR TO EACH PAYMENT CERTIFICATE. TOPSOIL WILL NOT BE CERTIFIED WITHOUT THE DELIVERY NOTES.
B59: i. | C59: Provision for 100mm layer for lawn areas | D59: =SUM(H163) -> 611 | E59: m² | G59: m³ | H59: =ROUND((D59*0.1),0) -> 61
B60: j. | C60: TOTAL Topsoil import and spread | G60: m³ | H60: =SUM(H59:H59) -> 61 | J60: RATE ONLY
B62: 2.2 | C62: SCARIFYING
B63: a. | C63: Supply all the necessary equipment, tools and labour for scarifying of all areas.
B64: b. | C64: Rip soil in all areas.
B65: c. | C65: Depth -- 150mm.
B66: d. | C66: Rip in two directions.
B67: e. | C67: Use hand labour to scarify under trees to ensure that tree roots do not get damaged.
B68: f. | C68: Contractor is to ensure that no services, existing paving or concrete haunching behind existing kerbs, are damaged.
B69: g. | C69: Remove all unwanted debris and medium to large sized rocks from the scarified soils.
B70: h. | C70: Rate is to be all inclusive per square meter.
B71: i. | C71: All inclusive rate per square meter.
B72: j. | C72: Provision for all open ground areas | G72: m² | H72: =SUM(H155+H163) -> 649
B74: 2.3 | C74: FINEGRADING
B75: a. | C75: Supply all necessary labour, machinery and equipment for the fine trimming of the planting soils of all areas.
B76: b. | C76: The contractor must ensure that all areas to be planted are compacted sufficiently to avoid any subsidence later on. Soil surface to be planted should not exceed a tolerance of 30mm in height when measured from the basic topographical line.
B77: c. | C77: Cultivate fertilizers and compost as supplied elsewhere.
B78: d. | C78: Provision must be made for proper and effective storm water drainage.
B79: e. | C79: Soil erosion should be avoided at all times.
B80: f. | C80: Stones larger than 40mm in diameter and all foreign material must be removed and used for fill.
B81: g. | C81: Final surface must be shaped to desired profiles as to flow into levels of roadways and structures.
B82: h. | C82: No irrigation or storm water should be allowed to puddle anywhere behind the retaining walls or in any of the allocated plant bed areas.
B83: i. | C83: Allow for shaping by hand.
B84: j. | C84: Provision for finegrading of all planting only. Allow for shaping by hand | G84: m² | H84: =H72 -> 649
B86: 2.4 | C86: COMPOST (Import and spread) & SOIL PREPARATION
B87: a. | C87: The contractor to provide all necessary equipment, labour and machinery for import and spread of compost.
B88: b. | C88: Sample of compost must comply with specification and be approved by the Landscape Architect prior to delivery on site.
B89: c. | C89: All compost shall consist of well-decomposed organic material, free of detrimental salts, glass, debris, weeds and other toxic impurities.
B90: d. | C90: The pH shall not exceed 7.0.
B91: e. | C91: Compost shall be protected against excessive rain, wind and dissipation.
B92: f. | C92: Payment after planting.
B93: g. | C93: Application rate
B94: h. | C94: IMPORTANT NOTE: PAYMENT FOR COMPOST WILL ONLY TAKE PLACE ON RECEIPT OF SIGNED DELIVERY NOTES BY THE LANDSCAPE ARCHITECT PRIOR TO EACH PAYMENT CERTIFICATE. COMPOST WILL NOT BE CERTIFIED WITHOUT THE DELIVERY NOTES.
B95: i. | C95: Provision for 80mm layer over rose bed area | D95: 38 | E95: m² | G95: m³ | H95: =SUM(D95)*0.08 -> 3
B96: j. | C96: Provision for 80mm layer over lawn area | D96: =SUM(H163) -> 611 | E96: m² | G96: m³ | H96: 49
B97: k. | C97: TOTAL Compost import and spread | G97: m³ | H97: =SUM(H95:H96) -> 52
B99: l. | C99: TOTAL Vitasoil for lawn [150ml/m²]: rate must include cultivation into soil | D99: =SUM(H163) -> 611 | E99: m² | G99: l | H99: 92
B101: 2.5 | C101: FERTILISERS
B102: a. | C102: Application rate: 100 gm per m²
B103: b. | C103: Spread prior to fine trimming.
B104: c. | C104: Working in 200 mm deep.
B105: d. | C105: Payment per m³ after fine trimming
B106: e. | C106: Rate to be all inclusive
B107: f. | C107: Provision for 2:3:2 for roses & lawn [100g/m²]: | D107: 38 | E107: m² | G107: kg | H107: =ROUND((D107*0.1),0) -> 4
B108: g. | C108: Provision for superphosphate for roses & lawn [50g/m²]: | D108: =D107 -> 38 | E108: m² | G108: kg | H108: =ROUND((D108*0.05),0) -> 2
B109: h. | C109: Provision for Milorgranite 6-4-0 or Talborne Organics Vita Green 5:1:5 (or similar approved) for lawn [60g/m²] : | D109: =D99 -> 611 | E109: m² | G109: kg | H109: 37
B111: 2.6 | C111: MULCH
B112: a. | C112: Mulch may be bark chip, wood chip or fruit pip mulch only
B113: b. | C113: Provision for import and spred of 60mm layer of suitable mulch over rose bed area | G113: m³ | H113: 3
B115: 2.7 | C115: BULK EARTHWORKS
C116: Refer to detail Drawing IS-3690-6304b Jumbo Park, Phola - Bulk Earthworks Levels Plan
B117: a. | C117: Compaction to be in layers of 150mm to 92% Mod AASHTO
B118: b. | C118: The contractor to provide all necessary equipment, labour and machinery for the carting and spread of topsoil for bulk earthworks
B119: c. | C119: Contractor to provide G5 or better material to achieve compaction.
B120: d. | C120: Layer works design is provisional
B121: e. | C121: Layer works design is subject to change
B122: f. | C122: Verification by qualified and registered civil engineer
B123: gi. | C123: Provision for 100mm G5 layer, compacted to 95% MOD AASHTO (To Engineer's specification) | D123: =SUM(H205) -> 90 | E123: m² | G123: m³ | H123: 33
B124: gii. | C124: Provision for sandy conditions: rip and re-compact in-situ layer minimum 200mm below the G5 to 93% MOD AASHTO (To Engineer's specification) | D124: =SUM(D123:D123) -> 90 | E124: m² | G124: m³ | H124: =SUM(H123:H123) -> 33
B126: 2.8 | C126: TEST AND TEST RESULTS
B127: ai. | C127: Provision for DCP tests to be done, and other tests to be done with a certified laboratory test (x3 each) | G127: no. | H127: 3
B128: aii. | C128: Compaction tests 3 per layer (In-situ and imported or G5 layer) - total 6 tests and result for paved areas. | G128: no. | H128: 3
C130: TOTAL FOR EARTHWORKS AND SOIL IMPROVEMENTS:
B133: 3. | C133: PLANTING - PART 1
C134: Refer to drawing: IS-3758-601
C136: Plants:
C137: Purchase all plants at registered nurseries and transport to site.
C138: All plants must be transported to the site in trucks with closed canopies. Plants in transit may not be exposed to wind or any other harmful elements.
C139: All plants are to be viewed and approved by the Landscape Architect before planting.
C140: No plants covered with pests or other damages will be accepted.
C141: All shrubs and groundcovers to be planted in grids, equally spaced.
C142: The Landscape Architect retains the right to adjust specific species and plant sizes if plants are not available or of poor quality.
C143: Payment after planting.
B145: 3.1 | C145: EVENT FRUIT TREES (Supply & Deliver, no planting)
B146: a. | C146: Trees provided by Contractor to meet the specifications.
B147: b. | C147: Trees from 40-50 ltr containers: Min. 1800- mm height after planting with stem diameter of 25-30 mm measured 300mm above soil level - sample to be approved.
B148: c. | C148: Contractor to water and guarantee each tree for max. 3 months after event or delivery to site
B150: d. | C150: Olea Manzanela (Manzanilla) Includes delivery Excludes planting and tree staking fertilizer. | G150: no. | H150: 50
B152: 3.2 | C152: SHRUBS AND GROUNDCOVERS
B153: a. | C153: Soil preparation for roses
B154: b. | C154: For very sandy soil liberal water retaining organic material such as peat moss, coir (coconut) fibre or peanus shells and 80mm compost be cultivated into existing soil.
B155: c. | C155: Rates to be all inclusive. | G155: m² | H155: 38
B156: d. | C156: Provision for Rose bed: Asparagus 'Mazeppa' (Emerald Fern) 4L @ 6/m² | D156: =SUM(H155) -> 38 | E156: m² | G156: no. | H156: =SUM(D156)*6 -> 228
B157: ei. | C157: Rosa Iceberg | G157: no. | H157: 5
B158: eii. | C158: Rosa Queen Elizabeth STD | G158: no. | H158: 8
B159: eiii. | C159: Rosa Nelson Mandela STD | G159: no. | H159: 7
B160: eiv. | C160: Tulbaghia violacea (Society Garlic) 2L @ 12/m² to be placed by L. Architect on site. | D160: 30 | E160: m² | G160: no. | H160: =SUM(D160)*9 -> 270
C161: Proposed Rose supplier or similar approved: LUDWIG'S ROSES CPT: 081 501 7070 (David)
B163: 3.3 | C163: Lawn | G163: m² | H163: =SUM(H173) -> 611
B164: a. | C164: Soil preparation for lawn
B165: b. | C165: The Contractor shall allow for the supply and installation of approved Cynodon dactylon sods.
B166: c. | C166: The sods must consist of healthy green grass with dense root systems, free from weeds and diseases, and with no dead patches. The grass must be mowed just before the sods are cut. Sods must be approved by the Landscape Architect before packing may commence.
B167: d. | C167: The surface area shall be lightly watered before the packing of sods commence.Ensure that all openings in grass blocks receive grass cutting from sods.
B168: e. | C168: Grass delivered to site must be laid within 24 hours of delivery. No grass shall be packed on a Friday or the day prior to a public holiday, to prevent drying out. All laid lawn shall be watered twice daily until final handover of the site.
B169: f. | C169: The Rate per m² shall allow for all costs of purchasing, transport, equipment, labour, material and supervision to execute the lawn planting to the satisfaction of the Landscape Architect.
B170: gi. | C170: For new lawns in sandy conditions, apply Vitasoil at a rate of 500ml/m². Cultivate and worked into the soil, combined with compost for maximum moisture retention. For new turf installations, a common recommendation is a 20% Vitasoil to 80% sandy soil mix for the top layer.
B171: gii. | C171: Recommendations for sandy soil: Initial setup - amend the top 150mm of soil with Vitasoil and 80mm organic compost before laying turf. Application method - work into the root zone by hand during planting. Sandy conditions note - sandy soil lacks nutrient-holding capacity. Vitasoil aids by restoring biological balance and holding moisture. Follow-up maintenance - Additional applications every 2-3 weeks to be used until the soil structure improves.
B172: h. | C172: Rates to be all inclusive. | G172: =G173 -> m²
B173: i. | C173: Provision for Cynodon dactylon (Bermuda Grass) Instant Lawn (including 10%) | G173: m² | H173: 611
C174: Application or similar approved: VITASOIL: sales@vitasoil.co.za
C176: TOTAL FOR PLANTING:
B179: 4. | C179: HARD LANDSCAPING - PART 1
C180: Refer to drawing: IS-3758-601
C182: GENERAL LANDSCAPE SPECIFICATION
B183: a. | C183: The contractor to provide all necessary machinery, labour, transport and materials for the supply and installation of the new unit paver hard surfaces as specified.
B184: b. | C184: All paving must be installed to meet the manufacturers specification, with special reference to details as provided by the Landscape Architect.
B185: c. | C185: Test sample: The contractor is to provide a 2m² test panel of all the different paving types as specified in the schedule of quantities. This needs to be approved by the Landscape Architect prior to the installation of any final surface. All aspects as specified need to be included into the test panel sample.
B186: d. | C186: Paving setting out: All hard surface setting out lines are as per the construction drawing and need to be approved by the landscape architect prior to the site shaping and sub base preparation.
B187: e. | C187: All levels need to accommodate a minimum fall to allow for sufficient water run off as per instruction and approval by the Landscape Architect.
B188: f. | C188: Soil preparation: Final site levels need to be shaped and sloped for approval before any compaction can commence. Failure in doing so will lead to the re compaction of the relevant areas.
B189: g. | C189: On approval of the general site levels and slopes, loosen sub soils to a depth of 200mm and remove all unwanted materials including organic matter and rocks larger than 40mm diameter.
B190: h. | C190: Moisten excavated soils and compact soil in layers not exceeding 100mm (compacted) to 93% MOD AASHTO to form the sub base to the desired levels and slopes.
B191: i. | C191: Excavate to allow for the final finishing height to be 35mm above the general shaped landscape soil levels. The surrounding landscape should be final shaped to tie into the pathways, not effecting the storm water run off pattern as approved.
B192: j. | C192: All final soil paving base layers to be approved by the Landscape Architect prior to installation of the final paving.
B193: k. | C193: Excavate for hard surface edge footing on completion of the sub base compaction.
B194: l. | C194: Edge footing to respond to the specific paving layout.
B195: m. | C195: Concrete footing is restricted to under the outer hard surface edge only. No concrete side haunching will be allowed.
B196: n. | C196: Unit paving final finish: No cracked, chipped, paving with unwanted markings, or paving other than specified will be accepted.
B197: o. | C197: All areas showing subsidence on the final product will mean that the larger area will be redone, re-compacted and repaired to meet the specifications.
B198: p. | C198: All paving to slope at 1-2% fall. Direction to be determined on site by the landscape architect.
B199: q. | C199: Install all paving units as specified and per manufacturers minimum specifications.
B200: r. | C200: All cutting to be mechanical cut only. Cut paver details to be approved prior to installation by the landscape architect.
B201: s. | C201: Topo surveyor - on site for setting out of works (to be included in rates).
B202: t. | C202: Rate to be all inclusive.
B204: 4.1 | C204: EXPOSED AGGREGATE PATH
B205: a. | C205: Supply, deliver & install 100mm thick Exposed Aggregate Path; including Mesh Ref 311 (according to Manufacturer's Specifications); 25MPa; Artevia Spec Sheet; Chryso Spec Sheet & General Specification for Exposed Aggregate Concrete Paving (including 20% for re-measure on site). Rate to include: excavation, shaping & leveling - as per General Specifications document | D205: 73 | E205: m² | G205: m² | H205: 90
C206: Refer to: General Specification for Exposed Aggregate Concrete Paving
B208: 4.2 | C208: JOINTS
B209: ai. | C209: Supply, deliver & install 6mm saw-cut joints; Spectrem 800 (minimum 2m apart) - as per General Specifications document (or similar approved) | G209: Lm | H209: 38
B210: aii. | C210: Supply, deliver & install 8mm expansion joints; TAMMSFLEX 75 (minimum 8m apart) - as per General Specifications document (or similar approved) | G210: Lm | H210: 21
C211: Refer to: General Specification for Exposed Aggregate Concrete Paving
B213: 4.3 | C213: STEPPING STONES
B214: a. | C214: Supply, deliver & install 600 x 300 x 40mm grey pavers on on 20mm washed riversand | G214: no. | H214: 34
C215: Proposed supplier or similar approved: LOVRIC DITTBENDER TERRAZZO TILES: 021-531 8570 / 084 547 1410 enviromi@mweb.co.za
B217: 4.4 | C217: GARDEN EDGE
B218: a. | C218: Supply, deliver & install (according to Manufacturer's specifications): BERA Eco Edge or similar approved. UV stable and 100% recyclable | G218: Lm | H218: 30 | J218: RATE ONLY
B219: b. | C219: BERA B-Edge Smart - or similar approved Standard lengths of 6 m or 12 m 4mm Mild Steel edge 150mm wide to be secured with pegs 300mm deep; primer treated, final colour to be matt black epoxy coats x2. Matt Black Epoxy Powder Coat: coating is impact and abrasion and corrosion resistant. | G219: Lm | H219: 30
C220: Proposed supplier or similar approved: BERA: 083 449 3954 (Franko)
B222: 4.5 | C222: REPAIR OF EXISTING TILES - PC SUM
B223: a. | C223: Provision for repair of existing floor tiles (exterior) and building apron as per Architect / Landscape Architect instruction | G223: PC SUM | H223: 1 | I223: 5,000.00 | J223: =I223*H223 -> 5,000.00
B224: b. | C224: Contractor to specify own % mark-up
B226: 4.6 | C226: ATTICK STOCK TILES - NO INSTALLATION REQUIRED
B227: ai. | C227: Provision for 300 x 300 x 22mm Bello White Plain | G227: no. | H227: 5
B228: aii. | C228: Provision for 228 x 228 x 17mm Bello White Plain | G228: no. | H228: 5
B229: aiii. | C229: Provision for 228 x 228 x 17mm Bello White Mosaic Pattern Tile | G229: no. | H229: 2
C230: Proposed supplier or similar approved: LOVRIC DITTBENDER TERRAZZO TILES: 021-531 8570 / 084 547 1410 enviromi@mweb.co.za
B231: 4.7 | C231: RAMPS - PC SUM Refer to drawing:
C232: Refer to drawings: IS-3758-605; IS-3758-606; IS-3758-607
B233: a. | C233: Provision for 3 x universal access ramps to Architect's detail and specification- BY SPECIALIST | G233: PC SUM | H233: 1 | I233: 144,000.00 | J233: =I233*H233 -> 144,000.00
B234: b. | C234: Provision for Profit and Attendance (% to be confirmed by Contractor)
C235: Proposed supplier or similar approved: Troy Thomson <troythomson7@gmail.com> Cell. 079 993 2321
B237: 4.8 | C237: GRAVEL
B238: a. | C238: The contractor to provide all necessary machinery, labour, transport and materials for the installation of gravel at the base of trees
B239: b. | C239: Provision for 6-12mm diam ornamental gravel: colour: sandstone and 100mm deep in courtyard areas | D239: m² | E239: 10 | G239: m³ | H239: 1
B240: c. | C240: Provision for Bidum | G240: m² | H240: 10
C242: TOTAL FOR HARD LANDSCAPING:
B245: 5. | C245: HAND-WATERING & EQUIPMENT - PART 1
B247: 5.1 | C247: UNDERGROUND SERVICES - PROVISION FOR PVC SLEEVES
B248: a. | C248: All sleeves to include draw wires and caps.
B249: b. | C249: The Contractor shall allow for the supply and installation of approved 1.5mm galvanised draw wires and PVC end Caps.
... 33 more rows

Sheet PART 2
B1: NELSON MANDELA PRISON HOUSE
B3: BILL OF QUANTITIES
B4: PART 2: | C4: GROUNDS UPGRADE - CIVIL AND EXTERNAL WORKS
C5: SUMMARY
B7: 1. | C7: =C29 -> MISCELLANEOUS - PART 2
B9: 2. | C9: =C46 -> EARTHWORKS - PART 2
B11: 3. | C11: =C105 -> PLANTING - PART 2
B13: 4. | C13: =C139 -> HARD LANDSCAPING - PART 2
B15: 5. | C15: =C198 -> HAND-WATERING & EQUIPMENT - PART 2
B17: 6. | C17: =C217 -> MAINTENANCE - PART 2
C19: SUB-TOTAL FOR PART 2
J20: Excl. VAT
C23: SUMMARY
C24: Total Civil and External Works | G24: m² | H24: =SUM(D165:D166) -> 360
C25: Total Area | G25: m² | H25: =SUM(H24:H24) -> 360
B27: ITEM | C27: DESCRIPTION OF WORK | G27: UNIT | H27: QTY | I27: RATE | J27: TOTAL
B29: 1. | C29: MISCELLANEOUS - PART 2
B31: 1.1 | C31: SITE CLEARANCE
B32: a. | C32: Loading and removal to an approved dumping site off site, all unusable material, debris and stone, unused plant materials, placed in measurable storage heaps, resulting from the initial soil preparation to the final finishing process (other than specified).
B33: b. | C33: Collect unwanted materials and place in measurable heaps, and certified by Landscape Architect on site prior to removal.
B34: c. | C34: The contractor should at all times ensure to keep the site in a neat and tidy condition.
B35: d. | C35: Provision for removal of unwanted material or material not suitable for fill - to spoil material off sit; 385m² (including 20% for re-measure on site) (50mm layer over area for exposed aggregate concrete paving path) | D35: =SUM(H24) -> 360 | E35: m² | G35: m³ | H35: =ROUND((D35*0.05),0) -> 18
B36: ei. | C36: Provision for hard rock excavation and subsoil conditions. | G36: PC SUM | H36: 1 | I36: 70,000.00 | J36: =H36*I36 -> 70,000.00
B37: eii. | C37: Contractor to specify own % mark-up
B39: 1.2 | C39: TREE TRIMMING AND ROT PRUNING - Allowance by Specialist
B40: a. | C40: Tree trimming and root pruning (Provision for PC sum By Specialist) Tree felling, destumping and clearing of felled tree. Load and removal to the contractors own dumping site. Area where trees was removed to be made good. | G40: PC SUM | H40: 1 | I40: 18,500.00 | J40: =SUM(H40*I40) -> 18,500.00
B41: b. | C41: Contractor to specify own % mark-up
C43: TOTAL FOR MISCELLANEOUS:
B46: 2. | C46: EARTHWORKS - PART 2
B48: 2.1 | C48: BULK EARTHWORKS
C49: Refer to detail Drawing IS-3690-6304b Jumbo Park, Phola - Bulk Earthworks Levels Plan
B50: a. | C50: Compaction to be in layers of 150mm to 92% Mod AASHTO
B51: b. | C51: The contractor to provide all necessary equipment, labour and machinery for the carting and spread of topsoil for bulk earthworks
B52: c. | C52: Contractor to provide G5 or better material to achieve compaction.
B53: d. | C53: Layer works design is provisional
B54: e. | C54: Layer works design is subject to change
B55: f. | C55: Verification by qualified and registered civil engineer
B56: gi. | C56: Provision for 150mm G5 layer, compacted to 95% MOD AASHTO (To Engineer's specification) | D56: =SUM(H165) -> 328 | E56: m² | G56: m³ | H56: 50
B57: gii. | C57: Provision for 100mm G5 layer, compacted to 95% MOD AASHTO (To Engineer's specification) | D57: =SUM(H166) -> 69 | E57: m² | G57: m³ | H57: 7
B58: giii. | C58: Provision for sandy conditions: rip and re-compact in-situ layer minimum 200mm below the G5 to 93% MOD AASHTO (To Engineer's specification) | D58: =SUM(D56:D57) -> 397 | E58: m² | G58: m³ | H58: 57
B59: giv. | C59: Provision for shaping | D59: =SUM(D57:D58) -> 466 | E59: m² | G59: m³ | H59: =SUM(H57:H58) -> 64
B61: 2.2 | C61: TEST AND TEST RESULTS
B62: ai. | C62: Provision for DCP tests to be done, and other tests to be done with a certified laboratory testing on site (x3 each) | G62: no. | H62: 2
B63: aii. | C63: Compaction tests 3 per layer (In-situ and imported or G5 layer) - total 6 tests and result for paved areas. | G63: no. | H63: 2
B66: 2.3 | C66: TOPSOIL
B67: 2.3.1 | C67: Topsoil (import and spread)
B68: a. | C68: The contractor to provide all necessary equipment, labour and machinery for the import and spread of topsoil.
B69: b. | C69: Provide a sample of topsoil for approval by the Client or Client Representative/Landscape Architects.
B70: c. | C70: The topsoil to be free of any building rubble, rocks or plant materials.
B71: d. | C71: Spread topsoil for groundcovers to a minimum thickness of 75mm average over de-compacted areas and 100mm over planting areas
B72: e. | C72: Spread topsoil for tree holes where required to a minimum of 0.34m³ per tree hole
B73: f. | C73: Rate is to be inclusive of all intensive hand labour, where required.
B74: g. | C74: Compact soils where required and specified and prevent soil erosion at all times.
B75: h. | C75: IMPORTANT NOTE FOR IMPORT OF TOPSOIL: PAYMENT FOR TOPSOIL WILL ONLY TAKE PLACE ON RECEIPT OF SIGNED DELIVERY NOTES. RECIEPTS ARE TO BE APPROVED BY THE LANDSCAPE ARCHITECT PRIOR TO EACH PAYMENT CERTIFICATE. TOPSOIL WILL NOT BE CERTIFIED WITHOUT THE DELIVERY NOTES.
B76: i. | C76: Provision for 100mm layer for lawn areas | D76: =SUM(H117) -> 162 | E76: m² | G76: m³ | H76: =ROUND((D76*0.1),0) -> 16
B77: j. | C77: TOTAL Topsoil import and spread | G77: m³ | H77: =SUM(H76:H76) -> 16 | J77: RATE ONLY
B79: 2.4 | C79: COMPOST (Import and spread) & SOIL PREPARATION
B80: a. | C80: The contractor to provide all necessary equipment, labour and machinery for import and spread of compost.
B81: b. | C81: Sample of compost must comply with specification and be approved by the Landscape Architect prior to delivery on site.
B82: c. | C82: All compost shall consist of well-decomposed organic material, free of detrimental salts, glass, debris, weeds and other toxic impurities.
B83: d. | C83: The pH shall not exceed 7.0.
B84: e. | C84: Compost shall be protected against excessive rain, wind and dissipation.
B85: f. | C85: Payment after planting.
B86: g. | C86: Application rate
B87: h. | C87: IMPORTANT NOTE: PAYMENT FOR COMPOST WILL ONLY TAKE PLACE ON RECEIPT OF SIGNED DELIVERY NOTES BY THE LANDSCAPE ARCHITECT PRIOR TO EACH PAYMENT CERTIFICATE. COMPOST WILL NOT BE CERTIFIED WITHOUT THE DELIVERY NOTES.
B88: i. | C88: Provision for 80mm layer over lawn area | D88: =SUM(H117) -> 162 | E88: m² | G88: m³ | H88: =SUM(D88)*0.08 -> 13
B89: j. | C89: TOTAL Compost import and spread | G89: m³ | H89: =SUM(H88:H88) -> 13
B91: k. | C91: TOTAL Vitasoil for lawn [150ml/m²]: rate must include cultivation into soil | D91: =SUM(H117) -> 162 | E91: m² | G91: l | H91: 25
B93: 2.5 | C93: FERTILISERS
B94: a. | C94: Application rate: 100 gm per m²
B95: b. | C95: Spread prior to fine trimming.
B96: c. | C96: Working in 200 mm deep.
B97: d. | C97: Payment per m³ after fine trimming
B98: e. | C98: Rate to be all inclusive
B99: f. | C99: Provision for Milorgranite 6-4-0 or Talborne Organics Vita Green 5:1:5 (or similar approved) for lawn [60g/m²] : | D99: =D91 -> 162 | E99: m² | G99: kg | H99: 10
C102: TOTAL FOR EARTHWORKS AND SOIL IMPROVEMENTS:
B105: 3. | C105: PLANTING - PART 2
C106: Refer to drawing: IS-3758-604
C108: Plants:
C109: Purchase all plants at registered nurseries and transport to site.
C110: All plants must be transported to the site in trucks with closed canopies. Plants in transit may not be exposed to wind or any other harmful elements.
C111: All plants are to be viewed and approved by the Landscape Architect before planting.
C112: No plants covered with pests or other damages will be accepted.
C113: All shrubs and groundcovers to be planted in grids, equally spaced.
C114: The Landscape Architect retains the right to adjust specific species and plant sizes if plants are not available or of poor quality.
C115: Payment after planting.
B117: 3.1 | C117: Lawn | G117: m² | H117: =SUM(H127) -> 162
B118: a. | C118: Soil preparation for lawn
B119: b. | C119: The Contractor shall allow for the supply and installation of approved Cynodon dactylon sods.
B120: c. | C120: The sods must consist of healthy green grass with dense root systems, free from weeds and diseases, and with no dead patches. The grass must be mowed just before the sods are cut. Sods must be approved by the Landscape Architect before packing may commence.
B121: d. | C121: The surface area shall be lightly watered before the packing of sods commence.Ensure that all openings in grass blocks receive grass cutting from sods.
B122: e. | C122: Grass delivered to site must be laid within 24 hours of delivery. No grass shall be packed on a Friday or the day prior to a public holiday, to prevent drying out. All laid lawn shall be watered twice daily until final handover of the site.
B123: f. | C123: The Rate per m² shall allow for all costs of purchasing, transport, equipment, labour, material and supervision to execute the lawn planting to the satisfaction of the Landscape Architect.
B124: gi. | C124: For new lawns in sandy conditions, apply Vitasoil at a rate of 500ml/m². Cultivate and worked into the soil, combined with compost for maximum moisture retention. For new turf installations, a common recommendation is a 20% Vitasoil to 80% sandy soil mix for the top layer.
B125: gii. | C125: Recommendations for sandy soil: Initial setup - amend the top 150mm of soil with Vitasoil and 80mm organic compost before laying turf. Application method - work into the root zone by hand during planting. Sandy conditions note - sandy soil lacks nutrient-holding capacity. Vitasoil aids by restoring biological balance and holding moisture. Follow-up maintenance - Additional applications every 2-3 weeks to be used until the soil structure improves.
B126: h. | C126: Rates to be all inclusive. | G126: =G127 -> m²
B127: i. | C127: Provision for Cynodon dactylon (Bermuda Grass) Instant Lawn (including 10%) | G127: m² | H127: 162
C128: Application or similar approved: VITASOIL: sales@vitasoil.co.za
B130: 3.2 | C130: HYDROSEEDING by Specialist
C131: An all-in-one mixture of specific and selected grass seeds, fertilisers, combined with a soil binder or tackifier, imported wood fibre mulch, soil ameliorates, growth stimulants and water is applied onto the prepared surfaces at a predetermined application rate. The fibrous layer formed by the soil binder or tackifier when combined with the blended mulch creates a microclimate that permits seed germination to take place when soil moisture and temperature conditions are favourable. Thereafter, the young emerging vegetation’s root systems develop quickly, anchoring the outer layer of the soil, significantly reducing erosion and accelerating plant succession of the applied vegetation types. (i) Soil preparation Where possible the topsoiled areas are to be scarified manually or mechanically, forming drills along the contours. The drills are to be approximately 150 mm apart and between 25 and 50 mm deep. (ii) Hydroseeding Specification The hydroseeding/amelioration application is to be carried out using suitable hydraulic seeding equipment with a built-in agitation system and a specialised centrifugal pump for handling varying viscous and slurry formulations.
C132: Seed Mixture: The seeding application will be 40 kg/ha of a Mayfords Fynbos biome seed mix Fertilisation a. NPK 1:1:1 (36) @ 300kg/ha b. Grofast organic mixture @ 800kg/ha Soil Binder A polyacrilimide soil binding agent is to be added to the hydroseeding mixture at 10 kg/ha in order to bind the loose sand/soil particles and create a suitable microclimate when combined with the mulch and additives. Mulch Locally sourced veld / cotton mulch shall be incorporated into the hydroseeding mixture. The application rate for the mulch shall be 500 kg/ha. Water Water shall be applied at rate of 10 kl/ha during the seeding process.
B133: a. | C133: Provision for hydroseeding of low growing Cynodon dominat mix at 40 kg/ha. Rate to include hand shaping. | G133: m² | H133: 1300
C134: VULA ENV. or similar approved: Office: +27 22 766 1106 Mobile: +27 82 564 5748 Email: deon@vula.biz
C136: TOTAL FOR PLANTING:
B139: 4. | C139: HARD LANDSCAPING - PART 2
C140: Refer to drawing: IS-3758-602
C142: GENERAL LANDSCAPE SPECIFICATION
B143: a. | C143: The contractor to provide all necessary machinery, labour, transport and materials for the supply and installation of the new unit paver hard surfaces as specified.
B144: b. | C144: All paving must be installed to meet the manufacturers specification, with special reference to details as provided by the Landscape Architect.
B145: c. | C145: Test sample: The contractor is to provide a 2m² test panel of all the different paving types as specified in the schedule of quantities. This needs to be approved by the Landscape Architect prior to the installation of any final surface. All aspects as specified need to be included into the test panel sample.
B146: d. | C146: Paving setting out: All hard surface setting out lines are as per the construction drawing and need to be approved by the landscape architect prior to the site shaping and sub base preparation.
B147: e. | C147: All levels need to accommodate a minimum fall to allow for sufficient water run off as per instruction and approval by the Landscape Architect.
B148: f. | C148: Soil preparation: Final site levels need to be shaped and sloped for approval before any compaction can commence. Failure in doing so will lead to the re compaction of the relevant areas.
B149: g. | C149: On approval of the general site levels and slopes, loosen sub soils to a depth of 200mm and remove all unwanted materials including organic matter and rocks larger than 40mm diameter.
B150: h. | C150: Moisten excavated soils and compact soil in layers not exceeding 100mm (compacted) to 93% MOD AASHTO to form the sub base to the desired levels and slopes.
B151: i. | C151: Excavate to allow for the final finishing height to be 35mm above the general shaped landscape soil levels. The surrounding landscape should be final shaped to tie into the pathways, not effecting the storm water run off pattern as approved.
B152: j. | C152: All final soil paving base layers to be approved by the Landscape Architect prior to installation of the final paving.
B153: k. | C153: Excavate for hard surface edge footing on completion of the sub base compaction.
B154: l. | C154: Edge footing to respond to the specific paving layout.
B155: m. | C155: Concrete footing is restricted to under the outer hard surface edge only. No concrete side haunching will be allowed.
B156: n. | C156: Unit paving final finish: No cracked, chipped, paving with unwanted markings, or paving other than specified will be accepted.
B157: o. | C157: All areas showing subsidence on the final product will mean that the larger area will be redone, re-compacted and repaired to meet the specifications.
B158: p. | C158: All paving to slope at 1-2% fall. Direction to be determined on site by the landscape architect.
B159: q. | C159: Install all paving units as specified and per manufacturers minimum specifications.
B160: r. | C160: All cutting to be mechanical cut only. Cut paver details to be approved prior to installation by the landscape architect.
B161: s. | C161: Topo surveyor - on site for setting out of works (to be included in rates).
B162: t. | C162: Rate to be all inclusive.
B164: 4.1 | C164: EXPOSED AGGREGATE PATH
B165: a. | C165: Supply, deliver & install 150mm thick Exposed Aggregate Path; including Mesh Ref 311. Refer to General Specification for Exposed Aggregate Concrete Paving (including 10% for re-measure on site). Rate to include: excavation, shaping & leveling . All as per General Specifications document | D165: 298 | E165: m² | G165: m² | H165: 328
B166: b. | C166: Supply, deliver & install 100mm thick Exposed Aggregate Path; including Mesh Ref 311 (according to Manufacturer's Specifications); 25MPa; Artevia Spec Sheet; Chryso Spec Sheet & General Specification for Exposed Aggregate Concrete Paving (including 20% for re-measure on site). Rate to include: excavation, shaping & leveling . All as per General Specifications document | D166: 62 | E166: m² | G166: m² | H166: 69
C167: Refer to: General Specification for Exposed Aggregate Concrete Paving
B169: 4.2 | C169: JOINTS
B170: a. | C170: The contractor to provide all necessary machinery, labour, transport and materials for the supply and installation of the new joints as per hard surfaces as specified.
B171: b. | C171: Supply, deliver & install 6mm saw-cut joints; Spectrem 800 (minimum 2m apart) - as per General Specifications document (or similar approved) | G171: Lm | H171: 200
B172: c. | C172: Supply, deliver & install 8mm expansion joints; TAMMSFLEX 75 (minimum 8m apart) - as per General Specifications document (or similar approved) | G172: Lm | H172: 55
C173: Refer to: General Specification for Exposed Aggregate Concrete Paving
B175: 4.3 | C175: BUILT SEATING WALL
B176: a. | C176: Supply & deliver Corobrik Silvergrey Slab Smooth Facebrick | G176: no. | H176: 110
B177: b. | C177: Supply & deliver Corobrik Silvergrey Satin Solid Facebrick | G177: no. | H177: 114
B178: c. | C178: Supply & deliver Corobrik Silvergrey Satin Slimline Facebrick | G178: no. | H178: 344
B179: d. | C179: Foundation and labour for construction as per Typical Built Seating wall Detail (Refer to IS-3758-602 LANDSCAPE SKETCHPLAN CIVIL EXTERNAL WORKS) | G179: Lm | H179: 9
B181: 4.4 | C181: UNDERGROUND SERVICES - PROVISION FOR PVC SLEEVES (For future irrigation and electrical works)
B182: a. | C182: All sleeves to include draw wires and caps.
B183: b. | C183: The Contractor shall allow for the supply and installation of approved 1.5mm galvanised draw wires and PVC end Caps.
B184: c. | C184: Supply, deliver & install Ribbed 110mm diam. sleeves - to depth of 450mm | G184: Lm | H184: 110
B185: d. | C185: Supply, deliver & install 60mm diam. HDPE sleeves - to depth of 450mm | G185: Lm | H185: 63
B186: e. | C186: Supply, deliver & install 20mm diam. HDPE sleeves - to depth of 450mm | G186: Lm | H186: 26
B188: 4.5 | C188: FURNITURE
C189: Refer to drawing: IS-3758-603
B190: a. | C190: The contractor to provide all necessary machinery, labour, transport and materials for the supply and installation of the new freestanding benches and Drinking Foantain connected to the existing tap as shown on Plan and Detail.
B191: b. | C191: Supply, deliver & install 200x400x1175mm Exposed aggregate WilsonStone Clifton Drinking Fountain; Colour: Sandstone. Rate to include irrigation valve box, and grass blocks, excavation, shaping & leveling . | G191: no. | H191: 1
B192: c. | C192: Supply, deliver & install 1800x100x450mm Exposed aggregate WilsonStone The Turin Exposed 1800 Bench with polished top. (Exposed Turin Bench - Ferro Exposed or similar.) | G192: no. | H192: 2
C193: Proposed supplier or similar approved:: WilsonStone: Lauren da Silva 082 327 9603 / lauren@wilsonstone.co.za
C195: TOTAL FOR HARD LANDSCAPING:
B198: 5. | C198: HAND-WATERING & EQUIPMENT - PART 2
B200: 5.1 | C200: UNDERGROUND SERVICES - PROVISION FOR PVC SLEEVES
B201: a. | C201: All sleeves to include draw wires and caps.
B202: b. | C202: The Contractor shall allow for the supply and installation of approved 1.5mm galvanised draw wires and PVC end Caps.
B203: c. | C203: Supply, deliver & install Ribbed 110mm diam. sleeves - to depth of 450mm | G203: Lm | H203: 32
B204: d. | C204: Supply, deliver & install 60mm diam. sleeves - to depth of 450mm | G204: Lm | H204: 32
B206: 5.2 | C206: ADDITIONAL HOSES (Main House)
B207: a. | C207: 20MM X 100M DRAGLINE M-DUTY BLACK | G207: no. | H207: 1
B208: b. | C208: 3/4in SNAP ON HOSE CONNECTOR | G208: no. | H208: 1
B209: c. | C209: SNAP ON SPRAY NOZZLE | G209: no. | H209: 1
B210: d. | C210: 20MM X 600MM DRAGLINE STAND | G210: no. | H210: 1
B211: e. | C211: AQUA PLASTIC SPRINKLER FC3/4"-3.57 X2.38 BLUE/YELL | G211: no. | H211: 1
C213: TOTAL FOR HAND-WATERING & EQUIPMENT:
B217: 6. | C217: MAINTENANCE - PART 2
B219: 6.1 | C219: MAINTENANCE for new areas
B220: a. | C220: Provision for additional maintenance for new lawn area | D220: =SUM(H117) -> 162 | E220: m² | G220: mnth | H220: 6
B221: b. | C221: Provision for additional maintenance for new seeding area | D221: =SUM(H133) -> 1,300 | E221: m² | G221: mnth | H221: 6
B222: c. | C222: TOTAL Top-up Vitasoil for lawn [75ml/m²]: rate must include cultivation into soil | D222: =SUM(D220) -> 162 | E222: m² | G222: l | H222: 46
C224: TOTAL FOR MAINTENANCE:
C227: TOTAL FOR PART 2 (To be carried forward to Summary Page)
